Cogmind - Beta 16.1 @@@ ROGUE MODE // 2026.04.04 @ 15:49:55 Player: Ayre223 Result: Destroyed by H-66 Slayer with Heavy Assault Rifle Performance ------------- Evolutions (5) 2500 Regions Visited (11) 2200 Robots Destroyed (12) 60 Value Destroyed (297) 297 Prototype IDs (12) 240 Alien Tech Used (0) 0 Bonus (420) 420 TOTAL SCORE: 5717 Bonus ------- Follower Combat Kills 120 Met Data Miner 300 Cogmind --------- Core Integrity 0/1000 Matter 290/300 Energy 100/100 System Corruption 0% Temperature Cool (0) Movement Core (50) Location -5/Factory Parts ------- > --- POWER (3) -------- (None) > --- PROPULSION (6) --- (None) > --- UTILITY (6) ------ (None) > --- WEAPON (2) ------- (None) > --- INVENTORY (5) ---- Advanced Sensor Array Peak State ------------ > --- POWER ------------ Light Deuterium Engine Light Deuterium Engine > --- PROPULSION ------- Flight Unit Flight Unit Improved Flight Unit > --- UTILITY ---------- Small Storage Unit Weight Redist. System Advanced Weight Redist. System Shield Generator > --- WEAPON ----------- Hammer > --- INVENTORY -------- Improved Ion Engine Micro Nuclear Core Component Analysis Suite [Rating: 21] Favorites ----------- Power Light Deuterium Engine Engine Light Deuterium Engine Power Core Micro Nuclear Core Propulsion Flight Unit Leg Aluminum Leg Hover Unit Improved Hover Unit Flight Unit Flight Unit Utility Weight Redist. System Device Weight Redist. System Storage Small Storage Unit Protection Hardened Light Armor Plating Weapon Hammer Energy Gun EM Pulse Gun Energy Cannon Beam Cannon Ballistic Gun High-powered Shotgun Impact Weapon Hammer Slashing Weapon Segregator Build | -11 -10 -9 -9 -8 -7 -7 -7 -7 -6 -6 -5 ------- Run | Yrd Mat Mat Min Mat Fac Low Low Dat Pro Fac Fac Slots Evolved 10 | . . 2 . 2 2 . . . . 2 2 Power 2 | . . 1 . . . . . . . 1 . Propulsion 4 | . . 1 . . 1 . . . . 1 1 Utility 4 | . . . . 2 1 . . . . . 1 Weapon . | . . . . . . . . . . . . Parts Attached 36 | 5 9 2 5 5 . . 3 . 2 4 1 Power 9 | 1 1 1 1 2 . . 1 . 1 1 . Engine 7 | 1 1 1 1 2 . . . . . 1 . Core 2 | . . . . . . . 1 . 1 . . Reactor . | . . . . . . . . . . . . Propulsion 10 | 2 2 1 3 . . . . . 1 . 1 Treads . | . . . . . . . . . . . . Leg 2 | 2 . . . . . . . . . . . Wheel . | . . . . . . . . . . . . Hover 3 | . 2 1 . . . . . . . . . Flight 5 | . . . 3 . . . . . 1 . 1 Utility 10 | . 3 . 1 2 . . 2 . . 2 . Device 6 | . 1 . 1 . . . 2 . . 2 . Storage 2 | . 1 . . 1 . . . . . . . Processor . | . . . . . . . . . . . . Hackware . | . . . . . . . . . . . . Protection 2 | . 1 . . 1 . . . . . . . Artifact . | . . . . . . . . . . . . Weapon 7 | 2 3 . . 1 . . . . . 1 . Energy Gun 3 | 2 1 . . . . . . . . . . Energy Cannon 1 | . 1 . . . . . . . . . . Ballistic Gun 1 | . . . . 1 . . . . . . . Ballistic Cannon . | . . . . . . . . . . . . Launcher . | . . . . . . . . . . . . Special Weapon . | . . . . . . . . . . . . Impact Weapon 1 | . 1 . . . . . . . . . . Slashing Weapon 1 | . . . . . . . . . . 1 . Piercing Weapon . | . . . . . . . . . . . . Special Melee Weapon . | . . . . . . . . . . . . Unidentified Prototypes 1 | . . . 1 . . . . . . . . Parts Lost 24 | . 1 7 1 . . . . . 5 8 2 Power 8 | . 1 2 . . . . . . 2 2 1 Propulsion 8 | . . 3 . . . . . . 2 2 1 Utility 6 | . . 1 1 . . . . . 1 3 . Weapon 2 | . . 1 . . . . . . . 1 . Highest Loss Streak 8 | . 1 6 1 . . . . . 3 8 2 To Critical Strikes . | . . . . . . . . . . . . Average Backups 3 | 2 4 4 4 4 6 7 3 3 2 2 1 Power . | . . . . . 1 2 2 2 1 1 . Propulsion 1 | 1 3 3 3 1 1 1 . . . . . Utility . | . . . . . . 1 1 1 1 . . Weapon . | 1 1 . 1 1 2 2 . . . . . Tool/Special . | . . . . . . . . . . . . Unused Backups 13 | . 8 . . . . . 3 . . 1 1 Power . | . . . . . . . . . . . . Propulsion 7 | . 5 . . . . . 1 . . 1 . Utility 3 | . 2 . . . . . . . . . 1 Weapon 2 | . 1 . . . . . 1 . . . . Tool/Special 1 | . . . . . . . 1 . . . . Average Slot Usage (%) 61 | . 94 90 39 65 69 69 74 76 56 32 3 Engine 8 | . 14 19 3 14 15 15 8 7 2 . . Core 2 | . . . . . . . 5 7 5 4 . Leg 1 | . 7 . . . . . . . . . . Hover 6 | . 20 27 . . . . . . . . . Flight 10 | . . . 9 27 23 23 23 23 15 4 1 Device 12 | . 9 11 15 9 7 7 20 23 18 11 1 Storage 4 | . 2 . . 3 7 7 7 7 7 4 . Protection 3 | . 9 10 . . 7 7 . . . . . Energy Gun 2 | . 12 . . . . . . . . . . Energy Cannon 2 | . 6 10 . . . . . . . . . Impact Weapon 6 | . 8 11 11 7 7 7 7 7 5 . . Peak Build Rating 21 | 5 11 14 10 17 17 17 21 21 21 20 6 Average Rating 12 | 3 9 12 5 14 17 17 20 21 16 16 2 On Entrance 11 | . 5 11 3 10 17 17 17 21 21 11 4 Avg Prop Armor Cover (%) 19 | . . 19 . . . . . . . . . Naked Turns 89 | . . . . . . . . . . . 89 Heaviest Build 20 | 7 15 18 9 18 18 18 20 20 20 14 7 Greatest Support 27 | 20 20 27 13 19 19 19 22 22 22 14 6 Greatest Overweight (x) 3 | . 1 . . . . . . . 1 3 1 Average Overweight (x) . | . . . . . . . . . . . . Largest Inventory Capacity 8 | 5 5 5 5 8 8 8 8 8 8 8 5 Average Capacity 6 | 5 5 5 5 6 8 8 8 8 8 6 5 Most Carried 8 | 5 5 5 5 6 7 7 8 3 5 4 3 Average Carried 3 | 2 4 4 4 4 6 7 3 3 2 3 1 Final Capacity 8 | 5 5 5 5 8 8 8 8 8 8 5 5 Final Carried 7 | 5 5 5 3 5 7 7 3 3 3 1 1 Class Distribution -------------------- 100% | Mutant Dominant Class ---------------- Mutant | -10/Materials Mutant | -9/Materials Mutant | -9/Mines Mutant | -8/Materials Mutant | -7/Factory Mutant | -7/Lower Caves Mutant | -7/Lower Caves Mutant | -7/Data Miner Mutant | -6/Proximity Caves Mutant | -6/Factory Mutant | -5/Factory Resources | -11 -10 -9 -9 -8 -7 -7 -7 -7 -6 -6 -5 ----------- Run | Yrd Mat Mat Min Mat Fac Low Low Dat Pro Fac Fac Matter Collected 577 | 250 95 . 60 . . 65 37 . 50 20 . Remotely . | . . . . . . . . . . . . Salvage Created 341 | 44 199 98 . . . . . . . . . Parts 26 | 2 17 7 . . . . . . . . . Haulers Intercepted . | . . . . . . . . . . . . Recyclers Shooed . | . . . . . . . . . . . . Parts Field Recycled . | . . . . . . . . . . . . Retrieved Matter . | . . . . . . . . . . . . Parts Self-Destructed 13 | . . . . . . . 3 . 10 . . Prevented 3 | . . . . . . . 3 . . . . Parts Restored . | . . . . . . . . . . . . Kills | -11 -10 -9 -9 -8 -7 -7 -7 -7 -6 -6 -5 ------- Run | Yrd Mat Mat Min Mat Fac Low Low Dat Pro Fac Fac Combat Hostiles Destroyed 10 | 1 6 3 . . . . . . . . . Guns 5 | 1 4 . . . . . . . . . . Cannons 5 | . 2 3 . . . . . . . . . Classes Destroyed 5 | 1 3 1 . . . . . . . . . Operator 1 | . 1 . . . . . . . . . . Watcher 1 | . 1 . . . . . . . . . . Swarmer 4 | . 3 1 . . . . . . . . . Grunt 5 | 1 3 1 . . . . . . . . . Sentry 1 | . . 1 . . . . . . . . . Best Kill Streak 3 | 1 3 2 . . . . . . . . . Combat Bots Only 2 | 1 2 2 . . . . . . . . . Max Kills in Single Turn 1 | 1 1 1 . . . . . . . . . Gunslinging . | . . . . . . . . . . . . Exploded . | . . . . . . . . . . . . Melee . | . . . . . . . . . . . . Uniques/NPCs Destroyed . | . . . . . . . . . . . . Combat | -11 -10 -9 -9 -8 -7 -7 -7 -7 -6 -6 -5 -------- Run | Yrd Mat Mat Min Mat Fac Low Low Dat Pro Fac Fac Hostile Shots Fired 443 | 2 39 53 7 4 12 7 1 . 124 96 98 Missed 163 | 1 5 7 1 2 5 4 1 . 58 40 39 Hits 280 | 1 34 46 6 2 7 3 . . 66 56 59 Melee 1 | . . . . . . . . . 1 . . Projectile 279 | 1 34 46 6 2 7 3 . . 65 56 59 AOE 2 | . . . 2 . . . . . . . . Critical Strikes 6 | . . 1 . . . . . . 1 1 3 Damage Taken 3680 | 10 283 524 123 32 114 47 . . 825 627 1095 Core 2127 | . 49 125 85 17 34 18 . . 469 327 1003 Absorbed by Shields 57 | . . . . . . . . . 57 . . Redirected to Shielding 4 | . . . . 4 . . . . . . . Regen/Repaired (Parts) 74 | . . . . 74 . . . . . . . Core Remaining (%) 68 | 100 80 . 47 96 . . . . 25 61 . Volleys Fired 40 | 2 24 14 . . . . . . . . . Largest 2 | 2 2 1 . . . . . . . . . Hottest 80 | 80 80 60 . . . . . . . . . Shots Fired 43 | 4 25 14 . . . . . . . . . Gun 22 | 4 18 . . . . . . . . . . Cannon 21 | . 7 14 . . . . . . . . . Launcher . | . . . . . . . . . . . . Special . | . . . . . . . . . . . . Kinetic . | . . . . . . . . . . . . Thermal 37 | . 23 14 . . . . . . . . . Explosive . | . . . . . . . . . . . . Electromagnetic 6 | 4 2 . . . . . . . . . . Robot Hit Streak 5 | 1 5 5 . . . . . . . . . Robot Miss Streak 5 | 2 5 4 . . . . . . . . . Penetration Max . | . . . . . . . . . . . . Secondary Targets . | . . . . . . . . . . . . Shots Hit Robots 26 | 1 11 9 . . 4 . . . . 1 . Core Hits 15 | 1 9 4 . . 1 . . . . . . Critical Kills . | . . . . . . . . . . . . Critical Parts Destroyed . | . . . . . . . . . . . . Critical Strikes . | . . . . . . . . . . . . Melee Attacks 14 | . 3 . . . 7 . . . . 4 . Thermal 4 | . . . . . . . . . . 4 . Impact 10 | . 3 . . . 7 . . . . . . Slashing . | . . . . . . . . . . . . Piercing . | . . . . . . . . . . . . Sneak Attacks . | . . . . . . . . . . . . Combat Hostiles . | . . . . . . . . . . . . Follow-up Attacks . | . . . . . . . . . . . . Damage Inflicted 461 | 15 148 178 . . 108 . . . . 12 . Guns 111 | 15 96 . . . . . . . . . . Cannons 230 | . 52 178 . . . . . . . . . Explosions . | . . . . . . . . . . . . Melee 108 | . . . . . 108 . . . . . . Ramming 12 | . . . . . . . . . . 12 . Kinetic . | . . . . . . . . . . . . Thermal 308 | . 130 178 . . . . . . . . . Explosive . | . . . . . . . . . . . . Electromagnetic 33 | 15 18 . . . . . . . . . . Impact 108 | . . . . . 108 . . . . . . Slashing . | . . . . . . . . . . . . Piercing . | . . . . . . . . . . . . Highest Corruption 2 | . . 2 2 . . . . . . . . Average Corruption 1 | . . 1 2 . . . . . . . . Corruption Purged . | . . . . . . . . . . . . Corruption Blocked . | . . . . . . . . . . . . Effects 3 | . . 1 2 . . . . . . . . Matter Fused 1 | . . . 1 . . . . . . . . Data Loss (major) 2 | . . 1 1 . . . . . . . . Overload Shots . | . . . . . . . . . . . . Overflow Damage . | . . . . . . . . . . . . Projectiles . | . . . . . . . . . . . . Explosions . | . . . . . . . . . . . . Melee . | . . . . . . . . . . . . Knockbacks 2 | . . . . . 1 . . . . 1 . Impact 2 | . . . . . 1 . . . . 1 . Kinetic . | . . . . . . . . . . . . Secondary . | . . . . . . . . . . . . Self-Inflicted Damage 5 | . . . . . . . . . . 5 . Shots . | . . . . . . . . . . . . Rammed 5 | . . . . . . . . . . 5 . Targets Rammed 5 | . . . . . . . . . . 5 . Kicked . | . . . . . . . . . . . . Crushed . | . . . . . . . . . . . . Highest Temperature 498 | 36 138 498 . 2 . . . . 6 . . Average Temperature 133 | 20 46 295 . 2 . . . . 4 . . Received Heat Transfer 654 | 6 18 183 . 9 63 . . . 162 90 123 Effects 9 | . . 9 . . . . . . . . . Shutdowns 2 | . . 2 . . . . . . . . . Energy Bleed 1 | . . 1 . . . . . . . . . Interference 3 | . . 3 . . . . . . . . . Matter Decay 1 | . . 1 . . . . . . . . . Short Circuit 1 | . . 1 . . . . . . . . . Damage (minor) 1 | . . 1 . . . . . . . . . Siege Activations . | . . . . . . . . . . . . Martial Activations . | . . . . . . . . . . . . Shielding Activations . | . . . . . . . . . . . . Robots Disrupted . | . . . . . . . . . . . . Combat Hostiles . | . . . . . . . . . . . . Robots Corrupted . | . . . . . . . . . . . . Combat Hostiles . | . . . . . . . . . . . . Parts Fried . | . . . . . . . . . . . . Impact Corruptions . | . . . . . . . . . . . . Robots Melted . | . . . . . . . . . . . . Combat Hostiles . | . . . . . . . . . . . . Parts Melted 2 | . 1 1 . . . . . . . . . Heat Transferred 656 | . 286 370 . . . . . . . . . Parts Sabotaged 2 | . . . . . . . . . 2 . . Parts Stolen . | . . . . . . . . . . . . Parts Stripped . | . . . . . . . . . . . . Power Chain Reactions . | . . . . . . . . . . . . Alert | -11 -10 -9 -9 -8 -7 -7 -7 -7 -6 -6 -5 ------- Run | Yrd Mat Mat Min Mat Fac Low Low Dat Pro Fac Fac Maximum Alert Level 1 | . . . . . . . . . . 1 . Low Security (%) 90 | 100 100 100 100 100 100 . . . . 11 100 Level 1 9 | . . . . . . . . . . 88 . Level 2 . | . . . . . . . . . . . . Level 3 . | . . . . . . . . . . . . Level 4 . | . . . . . . . . . . . . Level 5 . | . . . . . . . . . . . . High Security . | . . . . . . . . . . . . Max Security . | . . . . . . . . . . . . Peak Influence 303 | 20 92 55 . 35 25 . . . . 303 179 Initial 303 | . . 31 . . 15 . . . . 303 84 Average 54 | 1 34 16 . 6 15 . . . . 263 101 Influence Increases 1347 | 20 175 85 . 45 30 105 30 . 692 . 165 Destroy 0b10 Robot/C 300 | 20 120 60 . . . . . . 100 . . Destroy 0b10 Robot/NC 10 | . 10 . . . . . . . . . . Destroy Leader 42 | . 22 10 . . . . . . 10 . . Allied During Kill 27 | . . . . . . . . . 27 . . Successful Hack 8 | . 8 . . . . . . . . . . Disable Machine 15 | . . 15 . . . . . . . . . Partial Spotted 45 | . . . . 45 . . . . . . . Lose Combat Pursuer 900 | . 15 . . . 30 105 30 . 555 . 165 Influence Decreases 1198 | 20 101 159 . 10 50 66 61 23 210 309 189 Entered New Map 371 | . . 43 . . 20 6 11 23 . 179 89 Time Decay 597 | 20 91 56 . 10 30 60 50 . 150 50 80 Lost Part 210 | . 10 60 . . . . . . 40 80 20 Lost Ally 20 | . . . . . . . . . 20 . . Squads Dispatched 2 | . 1 . . . . . . . 1 . . Investigation . | . . . . . . . . . . . . Extermination . | . . . . . . . . . . . . Reinforcement 1 | . 1 . . . . . . . . . . Assault 1 | . . . . . . . . . 1 . . Garrison . | . . . . . . . . . . . . Intercept . | . . . . . . . . . . . . Searches Triggered . | . . . . . . . . . . . . Construction Impeded . | . . . . . . . . . . . . Haulers Reinforced . | . . . . . . . . . . . . Active Scanning Responses . | . . . . . . . . . . . . Cargo Convoy Interrupts . | . . . . . . . . . . . . Stealth | -11 -10 -9 -9 -8 -7 -7 -7 -7 -6 -6 -5 --------- Run | Yrd Mat Mat Min Mat Fac Low Low Dat Pro Fac Fac Distress Signals 5 | . 2 3 . . . . . . . . . Communications Jammed . | . . . . . . . . . . . . Distress Signals . | . . . . . . . . . . . . Times Spotted 120 | 1 14 16 8 2 3 4 1 . 49 3 19 Peak Tracking Total 18 | 1 4 10 16 2 4 4 2 . 18 3 11 Tactical Retreats 16 | . 1 . 1 . 1 2 1 . 8 . 2 Traps | -11 -10 -9 -9 -8 -7 -7 -7 -7 -6 -6 -5 ------- Run | Yrd Mat Mat Min Mat Fac Low Low Dat Pro Fac Fac Traps Triggered 3 | . . 2 . . . . . . . . 1 Indirectly . | . . . . . . . . . . . . Trap Hack Attempts . | . . . . . . . . . . . . Triggered . | . . . . . . . . . . . . Disarmed . | . . . . . . . . . . . . Reprogrammed . | . . . . . . . . . . . . Reused . | . . . . . . . . . . . . Traps Extracted . | . . . . . . . . . . . . Installed . | . . . . . . . . . . . . Triggered . | . . . . . . . . . . . . Machines | -11 -10 -9 -9 -8 -7 -7 -7 -7 -6 -6 -5 ---------- Run | Yrd Mat Mat Min Mat Fac Low Low Dat Pro Fac Fac Machines Disabled 1 | . . 1 . . . . . . . . . Max in Single Turn 1 | . . 1 . . . . . . . . . Machines Repaired . | . . . . . . . . . . . . Machines Dismantled . | . . . . . . . . . . . . Machines Sabotaged . | . . . . . . . . . . . . Overloaded Fab Kills . | . . . . . . . . . . . . Hacking | -11 -10 -9 -9 -8 -7 -7 -7 -7 -6 -6 -5 --------- Run | Yrd Mat Mat Min Mat Fac Low Low Dat Pro Fac Fac Machines Accessed 11 | . 5 . . 1 1 . . 4 . . . Terminals 5 | . 5 . . . . . . . . . . Fabricators 1 | . . . . . 1 . . . . . . Repair Stations 1 | . . . . 1 . . . . . . . Recycling Units . | . . . . . . . . . . . . Scanalyzers . | . . . . . . . . . . . . Garrison Access . | . . . . . . . . . . . . Total Hacks 40 | . 7 . . 2 1 . . 30 . . . Successful 40 | . 7 . . 2 1 . . 30 . . . Failed . | . . . . . . . . . . . . Catastrophic . | . . . . . . . . . . . . Database Lockouts . | . . . . . . . . . . . . Manual 2 | . . . . . . . . 2 . . . Terminals 7 | . 7 . . . . . . . . . . Fabricators 1 | . . . . . 1 . . . . . . Repair Stations 2 | . . . . 2 . . . . . . . Recycling Units . | . . . . . . . . . . . . Scanalyzers . | . . . . . . . . . . . . Garrison Access . | . . . . . . . . . . . . Terminal Hacks 37 | . 7 . . . . . . 30 . . . Record 17 | . 6 . . . . . . 11 . . . Part Schematic 11 | . . . . . . . . 11 . . . Robot Schematic 5 | . . . . . . . . 5 . . . Prototype ID Bank 3 | . . . . . . . . 3 . . . Alert Level 1 | . 1 . . . . . . . . . . Fabricator Hacks 1 | . . . . . 1 . . . . . . Network Status 1 | . . . . . 1 . . . . . . Repair Station Hacks 2 | . . . . 2 . . . . . . . Scan Component 1 | . . . . 1 . . . . . . . Repair 1 | . . . . 1 . . . . . . . Recycling Unit Hacks . | . . . . . . . . . . . . Scanalyzer . | . . . . . . . . . . . . Garrison Access Hacks . | . . . . . . . . . . . . Unauthorized Hacks . | . . . . . . . . . . . . Terminals . | . . . . . . . . . . . . Fabricators . | . . . . . . . . . . . . Repair Stations . | . . . . . . . . . . . . Recycling Units . | . . . . . . . . . . . . Scanalyzers . | . . . . . . . . . . . . Garrison Access . | . . . . . . . . . . . . Data Cores Recovered 1 | . 1 . . . . . . . . . . Used 1 | . 1 . . . . . . . . . . Hacking Detections 2 | . 2 . . . . . . . . . . Full Trace Events . | . . . . . . . . . . . . Feedback Events . | . . . . . . . . . . . . Feedback Blocked . | . . . . . . . . . . . . Robot Schematics Acquired 5 | . . . . . . . . 5 . . . Robots Built . | . . . . . . . . . . . . Authchips . | . . . . . . . . . . . . Time . | . . . . . . . . . . . . Total Robot Build Rating . | . . . . . . . . . . . . Part Schematics Acquired 11 | . . . . . . . . 11 . . . Parts Built . | . . . . . . . . . . . . Authchips . | . . . . . . . . . . . . Time . | . . . . . . . . . . . . Total Part Build Rating . | . . . . . . . . . . . . Part Studies Acquired . | . . . . . . . . . . . . Parts Repaired 1 | . . . . 1 . . . . . . . Time 26 | . . . . 26 . . . . . . . Parts Recycled . | . . . . . . . . . . . . Recycled Matter . | . . . . . . . . . . . . Retrieved Matter . | . . . . . . . . . . . . Retrieved Components . | . . . . . . . . . . . . Parts Scanalyzed . | . . . . . . . . . . . . Part Schematics Acquired . | . . . . . . . . . . . . Parts Damaged . | . . . . . . . . . . . . Bothacking | -11 -10 -9 -9 -8 -7 -7 -7 -7 -6 -6 -5 ------------ Run | Yrd Mat Mat Min Mat Fac Low Low Dat Pro Fac Fac Used RIF Installer . | . . . . . . . . . . . . Robots Hacked . | . . . . . . . . . . . . Non-combat . | . . . . . . . . . . . . Combat . | . . . . . . . . . . . . Robot Hacks Applied . | . . . . . . . . . . . . Relay Couplers Released . | . . . . . . . . . . . . Fabnet Peak Effective % . | . . . . . . . . . . . . Robots Rewired . | . . . . . . . . . . . . Allies Hacked . | . . . . . . . . . . . . Hacks Repelled . | . . . . . . . . . . . . Allies | -11 -10 -9 -9 -8 -7 -7 -7 -7 -6 -6 -5 -------- Run | Yrd Mat Mat Min Mat Fac Low Low Dat Pro Fac Fac Total Allies 1 | . . . . . . . . . 1 . . Largest Group 1 | . . . . . . . . . 1 . . Highest-Rated Group 96 | . . . . . . . . . 96 . . Highest-Rated Ally 96 | . . . . . . . . . 96 . . Total Orders . | . . . . . . . . . . . . Ally Attacks 11 | . . . . . . . . . 11 . . Total Damage 329 | . . . . . . . . . 329 . . Kills 5 | . . . . . . . . . 5 . . Allies Corrupted . | . . . . . . . . . . . . Allies Melted 1 | . . . 1 . . . . . . . . Intel | -11 -10 -9 -9 -8 -7 -7 -7 -7 -6 -6 -5 ------- Run | Yrd Mat Mat Min Mat Fac Low Low Dat Pro Fac Fac Active Infowar (turns) 11 | . . . 11 . . . . . . . . Terrain 11 | . . . 11 . . . . . . . . Robot Analysis Total . | . . . . . . . . . . . . Derelict Logs Recovered 5 | . . . 2 . . 1 . . 2 . . Drone Launches . | . . . . . . . . . . . . Drone Recoveries . | . . . . . . . . . . . . Exploration | -11 -10 -9 -9 -8 -7 -7 -7 -7 -6 -6 -5 ------------- Run | Yrd Mat Mat Min Mat Fac Low Low Dat Pro Fac Fac Turns Passed 1792 | 125 315 145 128 86 62 131 103 31 384 118 164 Spaces Moved 3313 | 110 266 186 268 153 119 385 281 91 967 200 287 Core 537 | 39 . 21 168 . . . . . 50 6 253 Treads . | . . . . . . . . . . . . Legs 123 | 71 52 . . . . . . . . . . Wheels . | . . . . . . . . . . . . Hover 379 | . 214 165 . . . . . . . . . Flight 2274 | . . . 100 153 119 385 281 91 917 194 34 Fastest Speed 34 | 50 56 50 34 34 34 34 34 34 34 35 40 Average Speed 43 | 95 68 52 44 34 34 34 34 34 38 36 55 Slowest Speed 200 | 120 120 60 50 34 34 34 34 34 100 200 120 Overloaded Moves . | . . . . . . . . . . . . Propulsion Burnouts . | . . . . . . . . . . . . Robots Hopped 5 | . . . . 1 1 . . . 3 . . Potential Cave-ins . | . . . . . . . . . . . . Cave-ins Triggered . | . . . . . . . . . . . . Exploration Rate (%) 36 | 6 36 18 72 21 3 59 50 71 88 8 10 Regions Visited 11 Branch Regions 5 Pre-discovered Areas 1 | . . . . . . . . 1 . . . Known Exits Taken 2 | . . . . 1 . . . . . 1 . Unknown Exits Taken 9 | 1 1 1 1 . 1 1 1 1 1 . . Scrap Searched 5 | . . . 2 . . 1 1 . 1 . . Spaces Dug . | . . . . . . . . . . . . Terrain Destroyed . | . . . . . . . . . . . . Melee . | . . . . . . . . . . . . Projectile . | . . . . . . . . . . . . AOE . | . . . . . . . . . . . . Terrain Rammed . | . . . . . . . . . . . . Walls Destroyed . | . . . . . . . . . . . . Machines Disabled . | . . . . . . . . . . . . Actions | -11 -10 -9 -9 -8 -7 -7 -7 -7 -6 -6 -5 --------- Run | Yrd Mat Mat Min Mat Fac Low Low Dat Pro Fac Fac Total 3567 | 126 372 218 276 185 126 384 289 90 977 233 291 Wait 98 | . 39 15 3 20 . . . . 4 17 . Move 3292 | 109 265 185 267 150 116 384 280 90 960 199 287 Hop 5 | . . . . 1 1 . . . 3 . . Pick Up 44 | 10 15 2 1 5 2 . 1 . 3 3 2 Fast Attach 7 | . 3 . 2 1 . . 1 . . . . Attach 31 | 5 4 2 3 5 . . 1 . 4 5 2 Detach 4 | . 1 . . 2 . . . . 1 . . Swap 5 | . 3 . . 1 . . 1 . . . . Drop 22 | . 15 . . . . . 5 . 2 . . Fire 40 | 2 24 14 . . . . . . . . . Melee 14 | . 3 . . . 7 . . . . 4 . Ram 5 | . . . . . . . . . . 5 . Kick . | . . . . . . . . . . . . Crush . | . . . . . . . . . . . . Escape Stasis . | . . . . . . . . . . . . Rewire . | . . . . . . . . . . . . Trap . | . . . . . . . . . . . . Miscellaneous . | . . . . . . . . . . . . Route ------- -11/Scrapyard -10/Materials -9/Materials -9/Mines -8/Materials -7/Factory -7/Lower Caves -7/Lower Caves -7/Data Miner -6/Proximity Caves -6/Factory -5/Factory History --------- Turn | Location | Event 2 | -11/Scrapyard | Met Revision 17 89 | -11/Scrapyard | Discovered new exit (range 8) 126 | -11/Scrapyard | Entered Materials 300 | -10/Materials | Build established: Mutant 429 | -10/Materials | Discovered new exit (range 15) 441 | -10/Materials | Entered another Materials area 441 | -9/Materials | Evolved 2 slots: Power x1, Propulsion x1 582 | -9/Materials | Discovered new exit (range 9) 586 | -9/Materials | Entered Mines 587 | -9/Mines | Assembled infested the area 592 | -9/Mines | Assisted by a Guerilla fighting off Assembled 592 | -9/Mines | Learned 2 Materials zone layouts 602 | -9/Mines | Learned 2 Materials zone layouts 608 | -9/Mines | Lost 6 parts (2p2n1u1w) 631 | -9/Mines | Met a Derelict bent on vengeance 663 | -9/Mines | Core integrity fell below 50% 709 | -9/Mines | Discovered new exit (range 16) 714 | -9/Mines | Entered Materials 714 | -8/Materials | Evolved 2 slots: Utility x2 715 | -8/Materials | Identified exit to Factory 746 | -8/Materials | Repaired Hammer 800 | -8/Materials | Entered Factory 800 | -7/Factory | Evolved 2 slots: Propulsion x1, Utility x1 860 | -7/Factory | Discovered new exit (range 6) 862 | -7/Factory | Entered Lower Caves 917 | -7/Lower Caves | Learned Factory emergency access door positions 977 | -7/Lower Caves | Discovered new exit (range 11) 993 | -7/Lower Caves | Entered another Lower Caves area 1090 | -7/Lower Caves | Discovered new exit (range 11) 1096 | -7/Lower Caves | Entered Data Miner 1096 | -7/Data Miner | Discovered new exit (range 6) 1103 | -7/Data Miner | Met Data Miner 1110 | -7/Data Miner | Learned location of Section 7 (-3) 1110 | -7/Data Miner | Acquired the access code to Warlord's prototype stash 1117 | -7/Data Miner | Received God Mode back door access code from Data Miner 1127 | -7/Data Miner | Entered Proximity Caves 1215 | -6/Proximity Caves | Attracted the attention of an 0b10 outpost 1305 | -6/Proximity Caves | Learned Factory interactive machine intel 1423 | -6/Proximity Caves | Attracted the attention of an 0b10 checkpoint 1436 | -6/Proximity Caves | Core integrity fell below 50% 1442 | -6/Proximity Caves | Escorted by Enhanced Grunt 1453 | -6/Proximity Caves | Lost 3 parts (1p1n1u) 1496 | -6/Proximity Caves | Learned 8 Factory zone layouts 1506 | -6/Proximity Caves | Discovered new exit (range 14) 1511 | -6/Proximity Caves | Entered Factory 1511 | -6/Factory | Evolved 2 slots: Power x1, Propulsion x1 1512 | -6/Factory | Identified exit to Factory 1514 | -6/Factory | Loaded intel: 54 interactive machine locations 1629 | -6/Factory | Entered another Factory area 1629 | -5/Factory | Evolved 2 slots: Propulsion x1, Utility x1 1653 | -5/Factory | Lost 8 parts (2p2n3u1w) 1694 | -5/Factory | Core integrity fell below 50% 1788 | -5/Factory | Core integrity fell below 20% 1793 | -5/Factory | Destroyed by H-66 Slayer with Heavy Assault Rifle Last Messages --------------- 01681_ R-10 Processor collects Component Analysis Suite. 01685_ Slug penetrates Wall. 01686_ Penetrated by Slug. 01690_ K-01 Serf destroyed. 01692_ Slug penetrates Wall. 01692_ Penetrated by Slug. 01692_ Slug penetrates Wall. 01696_ Penetrated by Slug. 01696_ Matter Pump disabled. 01698_ Critical hit (Burn: +37). 01699_ K-01 Serf collects debris. 01747_ Acquired Xenon Bombardment Thruster. 01774_ Drone sends a signal. 01774_ H-66 Slayer retrieves Drone. 01778_ Slug penetrates Door. 01778_ Imp. Ion Engine destroyed. 01782_ Slug penetrates Wall. 01783_ Xenon Bombardment Thruster destroyed. 01787_ Penetrated by Slug. Map ----- +----------------------------------------------------+ | ???????????????# """ """ ##???? | | ???????????????# """ """ #????? | | ???????????????# """ """ #????? | | ???????????????# #????? | | ???????????????# """ """ #????? | | ???????????????# """ """ +????? | | ???????????????# """ """ #????? | | ???????????????# #????? | | ???????????????# #????? | | ???????????????# ###########?? | | ?????????+##+### # #?? | | ????????# # """ #?? | | ????????# + """"" ### | | ????????# g # """"" + | | ????????# # ### | | ????????# # #?? | | ????????# s######## #?? | | ????????# ss#??????# #?? | | ????????# s##?????###########?? | | ????????+ s T#?????????????????? | | ????????# #?????????????????? | | ????????# #??????????????????? | | ????????# #??????????????????? | | ????????# #??????????????????? | | ????????# #??????????????????? | | #########@ #??????????????????? | | # # +??????????????????? | | # # m #??????????????????? | | # # #??????????????????? | | # # #??????????????????? | | # # #??????????????????? | | # # ####+#####?????????? | | # # ????????? | | # # h ###### | | # + | | # # ###### | | # # ??# | | # # ######### ?# | | # # #???????# ?# | | # # h#???????# # | | # # #???????+ # """ | | # # #???????# + """ | | # # #???????# # """ | | ######### #???????# + | | ????????# ##+#?#+######## """ | | ????????# ### #??????# """ | | ????????# #??????# """ | | ????????# #??????# | | ????????# #??????#+#### | | ????????# ######## #??? | +----------------------------------------------------+ Best States ------------- Heat Dissipation 40 Energy Generation 24 Energy Capacity 305 Matter Stores 308 Matter Capacity 500 Sight Range 16 Terrain Scan Range 14 Terrain Scan Density 10 Additional Mass Support 9 Armor Coverage 150 Utility Shielding 33 Evasion (%) 63 Item Schematics ----------------- Combat Drone Bay | -7/Data Miner | Free Lgt. Regenerative Plating | -7/Data Miner | Free Cld. Cesium-ion Thruster | -7/Data Miner | Free Thermal Defense Suite | -7/Data Miner | Free Antimatter Cannon | -7/Data Miner | Free Antigrav System | -7/Data Miner | Free Lrn. Tractor Beam | -7/Data Miner | Free Lrn. Proton Cannon | -7/Data Miner | Free Remote Shield | -7/Data Miner | Free Micro-nuke Launcher | -7/Data Miner | Free Antimatter Reactor | -7/Data Miner | Free Robot Schematics ------------------ R-10 Processor | -7/Data Miner | Free E-15 Imp | -7/Data Miner | Free G-50 Soldier | -7/Data Miner | Free A-15 Conveyor | -7/Data Miner | Free M-22 Extractor | -7/Data Miner | Free Fabricated ------------ Nothing Repaired ---------- Hammer | 26% | -8/Materials Studied --------- None Alien Tech Used ----------------- None Achievements -------------- DATA ERROR: Steam Global Achievement% For Emergencies Only I Have A Map? Slippery One Challenges ------------ None Game ------ Seed QuantumPlatingBiocell Manual? 0 Play Time 01:04:51 Cumulative 14.2 hours Start 2026.04.04 @ 14:42:57 End 2026.04.04 @ 15:49:55 Sessions 1 Manual Loads 0 Difficulty Rogue Special Mode None Game No. 24 Rogue 24 Adventurer 0 Explorer 0 Win Type - Total 0 Types 0/0/0/0/0/0/0/0/0/0 Lore% 12 Gallery% 20 Achievement% 12 Wizard Run 0 Options --------- Layout 1 ASCII 0 Keyboard 0 Movement Mouse Keybinds 0 Fullscreen 1 Font 24/Smallcaps Map View 50x35 Zoom Use 0% Tactical HUD 1 Map Filters NONE Filters NONE Steam 1 RUN: 1038d8ee-00b7-463d-bd1c-df91aaa98068